Workbook

Sheet Instructions (hidden)
A1: INSTRUCTIONS FOR THE CITIZEN'S GUIDE SPREADSHEET
A4: The spreadsheet is organized by tabs. The first tab to the right of the Instruction tab is titled "Data Input" and is the only tab where you should have to enter data or make modifications. The next four tabs contain the Citizens' Guide organized as follows:
A8: ● Revenues
A9: ● Expenditures
A10: ● Financial Position
A11: ● Other long-term obligations
A13: To enter information in the data input tab, you will need to have copies of your financial statements, trial balances, or F-65 forms. To use the spreadsheet:
A16: ● The model requires 5 years of data, but allows for 10 years (10 years being preferable.) In order for the graphs to ignore the first five years, we have hidden those columns. If you want to use more than five years, just "unhide" columns C-G and the input areas will be available.
A20: ● Rows 4 through 29 present the revenues and expenditures from all governmental funds.
A22: » This should include the General Fund plus all special revenue, debt service, capital project, and permanent funds (if you are using the F-65, this is the sum of columns (a) and (b).
A25: » If you have any revenue or expenditure categories that are not being used by your local unit, please "hide" those rows on the data input sheet. This will remove them from the graphs so that the graphical presentation will be easier for the citizen to understand. This will be very common; for instance, row 27-extraordinary/special items, is quite uncommon to use.
A30: ● Rows 31 through 35 present the fund balance as of the balance sheet date;
A32: » This should include the General Fund plus all special revenue, debt service, capital project, and permanent funds (if you are using the F-65, this is the sum of columns (a) and (b).
A35: » If you have any fund balance categories that are not being used by your local unit (i.e., you have no reservations or you have no designation), please "hide" those rows on the data input sheet. This will remove them from the graphs.
A37: ● Rows 39 through 54 presents the funded status of all "defined benefit" employee benefit plans (pension plans, retiree health care, or any other OPEB plans.)
A39: » This information should be in the footnote disclosures of your annual financial statements; it is also available in your actuarial valuations.
A41: » Many local units only have every other year (or every third year) information related to the actuarial accrued liability (AAL) for retiree health care plans. For those communities, we recommend extrapolating the information between valuations so that a fair picture can still be obtained. For example: if the 2007 AAL was $5 million and the 2010 AAL was $8 million, you could extrapolate to $6 million for 2008 and $7 million for 2009.
A46: ● Rows 57 through 67 present the debt information from the "long term debt account group." In other words, this represents all governmental liabilities not already reported in the funds themselves. This information generally can be found in the footnote disclosures of your financial statements.
A50: ● Row 69 presents population information. This is presented so that we can compute measures on a per-capita basis, and will make it easier when you want to do comparisons with other local units in the future. For 2010, the population count should agree with the U.S. census figures. For all other years, estimates of population are generally available through your regional council of governments.
A55: ● Rows 79-83 are grayed out and should be ignored. This section is necessary in order for the interactive revenue and expenditure charts to operate properly.
A58: On the first two tabs of the Citizens' Guide (revenue and expenditures), table number 4 has been built as an interactive chart. When this is put on your website, the user can choose any revenue (expenditure) from the drop-down list and see the historical trend for that particular revenue (expenditure).
A62: Before publishing the spreadsheet to your website, we highly recommend you "hide" the Data Input Tab and the F-65 Crosswalk Tab so that this document will be more user-friendly. To hide a tab, right click on the tab and select "Hide".

Sheet Data Input (hidden)
A1: VILLAGE OF SARANAC
A2: CITIZENS' GUIDE TO LOCAL UNIT FINANCES | Q2: Per capita information
A3: Date Input Page | C3: 2001 | D3: 2002 | E3: 2003 | F3: 2004 | G3: 2005 | H3: 2006 | I3: 2007 | J3: 2008 | K3: 2009 | L3: 2010 | M3: 2011 | N3: 2012 | O3: 2013 | P3: 2014 | Q3: 2013 | R3: 2014
A6: Stmt. Of Rev & Exp - All governmental funds
A7: Revenue
B8: Taxes | H8: 275673 | I8: 288123 | J8: 300799 | K8: 307746 | L8: 307551 | M8: 288939 | N8: 282961 | O8: =213664.08+4496.04+25601.92+25601.92 -> 269363.96 | P8: =203481.11+4918.83+24391.61+24391.61 -> 257183.16 | Q8: =ROUND(O8/$O$74,2) -> 203.29 | R8: =ROUND(P8/$P$74,2) -> 194.1
B9: Licenses & permits | H9: 780 | I9: 1080 | J9: 303 | K9: 525 | L9: 340 | M9: 200 | N9: 415 | O9: 575 | P9: 350 | Q9: =ROUND(O9/$O$74,2) -> 0.43 | R9: =ROUND(P9/$P$74,2) -> 0.26
B10: from Federal Govt. | H10: 100200 | I10: 0 | J10: 0 | K10: 0 | L10: 0 | M10: 207764 | N10: 27452.89 | O10: 0 | P10: 0 | Q10: 0 | R10: 0
B11: from State Govt. | H11: 244246 | I11: 301793 | J11: 239599 | K11: 234712 | L11: 217236 | M11: 218467 | N11: 219870.2 | O11: =1518.55+124456+4452.54+68889.32+2473.84+21301.15+765 -> 223856.4 | P11: =1533.95+127752+4541.55+74937.97+2471.84+23189.93+764.91 -> 235192.15 | Q11: 168.95 | R11: 177.5
B12: Local contributions | H12: 95250 | I12: 76335 | J12: 73743 | K12: 85964 | L12: 77012 | M12: 88355 | N12: 127127.83 | O12: 98791.52 | P12: 103057.02 | Q12: 74.56 | R12: 77.78
B13: Charges for services | H13: 38093 | I13: 40617 | J13: 41607 | K13: 46581 | L13: 44038 | M13: 44190 | N13: 47377.63 | O13: 49299.19 | P13: 50881.83 | Q13: 37.21 | R13: 38.4
B14: Fines & forfeitures | H14: 1336 | I14: 1184 | J14: 1158 | K14: 2555 | L14: 2586 | M14: 2712 | N14: 2133.93 | O14: =782.31+508.83+45 -> 1336.14 | P14: =201.53+901.26 -> 1102.79 | Q14: 1.01 | R14: 0.83
B15: Interest & rent | H15: 39503 | I15: 66862 | J15: 96397 | K15: =77001+765 -> 77766 | L15: 65620 | M15: 49883 | N15: 32244.76 | O15: =35421.96+1982.07 -> 37404.03 | P15: =1998.98+40249.12 -> 42248.1 | Q15: 28.23 | R15: 31.89
B16: Other revenue | H16: 232037 | I16: 56379 | J16: 164827 | K16: 113771 | L16: 82342 | M16: 233162 | N16: 141659.49 | O16: =1075+57.5+1719+1649.26+8505.45+187000+57500 -> 257506.21 | P16: =1150-147.5+1533+314.89+10169.48+140000+1400 -> 154419.87 | Q16: 194.34 | R16: 116.54
B17: total revenue | C17: =SUM(C8:C16) -> 0 | D17: 0 | E17: 0 | F17: 0 | G17: 0 | H17: 1027118 | I17: 832373 | J17: 918433 | K17: 869620 | L17: 796725 | M17: 1133672 | N17: 881242.73 | O17: 938132.45 | P17: 844434.92 | Q17: 708.02 | R17: 637.31
A18: Expenditures
B19: General government | H19: 80475 | I19: 82766 | J19: 98097 | K19: =108678-4728 -> 103950 | L19: 102400 | M19: 96123 | N19: 105564 | O19: =7272.56+35468.42+52140.94+354.7+833.33+320+660 -> 97049.95 | P19: =7965.17+34824.68+50171.57+3822.68+355+660 -> 97799.1 | Q19: 73.25 | R19: 73.81
B20: Police & fire | H20: 132788 | I20: 158376 | J20: 148209 | K20: =86150+59828 -> 145978 | L20: 153627 | M20: 172819 | N20: 174408.15 | O20: =63168.11+29469.51+103057.02 -> 195694.64 | P20: =66202.91+30247.24+96022.48 -> 192472.63 | Q20: 147.69 | R20: 145.26
B21: Other public safety | H21: =10321-7475 -> 2846 | I21: =9479-5980 -> 3499 | J21: =9309-5980 -> 3329 | K21: 4728 | L21: 5965 | M21: 3354 | N21: 3247.46 | O21: =2784.44+450+233.5+592.85+1555.76 -> 5616.55 | P21: =4618.94+600+387.96 -> 5606.9 | Q21: 4.24 | R21: 4.23
B22: Roads | H22: 465000 | I22: 179737 | J22: 301295 | K22: 254485 | L22: 217588 | M22: 186735 | N22: 168504.43 | O22: 385065.6 | P22: 297145.16 | Q22: 290.62 | R22: 224.26
B23: Other public works | H23: 62684 | I23: 70442 | J23: 71696 | K23: 76787 | L23: 78245 | M23: 80669 | N23: 77361.46 | O23: =25886.33+47701.02 -> 73587.35 | P23: =25039.88+49375.41 -> 74415.29 | Q23: 55.54 | R23: 56.16
B24: Health & welfare | H24: 7475 | I24: 5980 | J24: 5980 | K24: 5980 | L24: 6142 | M24: 6142 | N24: 6141.76 | O24: 6141.76 | P24: 6100.26 | Q24: 4.64 | R24: 4.6
B25: Community & economic development | H25: 0 | I25: 0 | J25: 0 | K25: 0 | L25: 0 | Q25: 0 | R25: 0
B26: Recreation & culture | H26: 44923 | I26: 27356 | J26: 38435 | K26: 34075 | L26: 39548 | M26: 31420 | N26: 42712.61 | O26: 48423.56 | P26: =37565.02+5000 -> 42565.02 | Q26: 36.55 | R26: 32.12
B27: Capital outlay | H27: 122303 | I27: 114213 | J27: 20338 | K27: =63055+14394 -> 77449 | L27: 176045 | M27: 734901 | N27: 175248.98 | O27: =13063.69-2741.73 -> 10321.96 | P27: 29425 | Q27: 7.79 | R27: 22.21
B28: Debt service | H28: 0 | I28: 0 | J28: 0 | K28: 0 | L28: 0 | Q28: 0 | R28: 0
B29: Unallocated fringes & insurance | H29: 0 | I29: 0 | J29: 0 | K29: 0 | L29: 0 | Q29: 0 | R29: 0
B30: Net Interfund transfers | H30: 217959 | I30: 38000 | J30: 151000 | K30: 106100 | L30: 72900 | M30: 218500 | N30: 82500 | O30: 244500 | P30: 140000 | Q30: 184.53 | R30: 105.66
B31: Extraordinary/ Special items | H31: 0 | I31: 0 | J31: 0 | K31: 0 | L31: 0 | Q31: 0 | R31: 0
B32: total expenditures | C32: =SUM(C19:C31) -> 0 | D32: 0 | E32: 0 | F32: 0 | G32: 0 | H32: 1136453 | I32: 680369 | J32: 838379 | K32: 809532 | L32: 852460 | M32: 1530663 | N32: 835688.85 | O32: 1066401.37 | P32: 885529.36 | Q32: 804.83 | R32: 668.32
B33: Surplus (shortfall) | C33: =+C17-C32 -> 0 | D33: 0 | E33: 0 | F33: 0 | G33: 0 | H33: -109335 | I33: 152004 | J33: 80054 | K33: 60088 | L33: -55735 | M33: -396991 | N33: =+N17-N32 -> 45553.88 | O33: =+O17-O32 -> -128268.92 | P33: =+P17-P32 -> -41094.44 | Q33: -96.81 | R33: -31.01
A34: Financial position - All governmental funds
B36: Undesignated fund balance | H36: 684655 | I36: 883222 | J36: 947228 | K36: =989825+12507 -> 1002332 | L36: 950967 | M36: 553975 | N36: 599493 | O36: 471191 | P36: 430069 | Q36: 355.62 | R36: 324.58
B37: Designated | H37: 15797 | I37: 0 | J37: 16838 | K37: 17448 | L37: 17880 | M37: 18003 | N37: 18039.35 | O37: 18072.49 | P37: 18099.62 | Q37: 13.64 | R37: 13.66
B38: Reserved | H38: 0 | I38: 0 | J38: 0 | K38: 0 | L38: 0 | Q38: 0 | R38: 0
B39: Total fund balance | C39: =SUM(C36:C38) -> 0 | D39: 0 | E39: 0 | F39: 0 | G39: 0 | H39: 700452 | I39: 883222 | J39: 964066 | K39: 1019780 | L39: 968847 | M39: 571978 | N39: 617532.35 | O39: 489263.49 | P39: 448168.62 | Q39: 369.26 | R39: 338.24
B41: Calculated - Unreserved fund balance | C41: =SUM(C36:C37) -> 0 | D41: 0 | E41: 0 | F41: 0 | G41: 0 | H41: 700452 | I41: 883222 | J41: 964066 | K41: 1019780 | L41: 968847 | M41: 571978 | N41: 617532.35 | O41: 489263.49 | P41: 448168.62 | Q41: 369.26 | R41: 338.24
A43: Liabilities not counted on a modified-accrual basis:
A44: Pensions
A45: Date of actuarial valuation: | C45: =EOMONTH(D45,-12) -> 2000-12-31 | D45: 2001-12-31 | E45: 2002-12-31 | F45: 2003-12-31 | G45: 2004-12-31 | H45: 2005-12-31 | I45: 2006-12-31 | J45: 2007-12-31 | K45: 2008-12-31 | L45: 2009-12-31
B46: Assets | H46: Enter | I46: Enter | J46: Enter | K46: Enter | L46: Enter
B47: Actuarial Liability | H47: Enter | I47: Enter | J47: Enter | K47: Enter | L47: Enter
B48: Unfunded (Overfunded) | C48: =+C47-C46 -> 0 | D48: 0 | E48: 0 | F48: 0 | G48: 0 | Q48: =ROUND(K48/$L$74,2) ->  | R48: =ROUND(L48/$L$74,2) -> 
B49: Percent funded | C49: =IF(ABS(C47)=0,"",+C46/C47) ->  | D49: =IF(ABS(D47)=0,"",+D46/D47) -> 
A50: OPEB
A51: Date of actuarial valuation: | C51: =EOMONTH(D51,-12) -> 2000-12-31 | D51: 2001-12-31 | E51: 2002-12-31 | F51: 2003-12-31 | G51: 2004-12-31 | H51: 2005-12-31 | I51: 2006-12-31 | J51: 2007-12-31 | K51: 2008-12-31 | L51: 2009-12-31
B52: Assets | C52: 0 | D52: =C52*1.05 -> 0 | E52: =D52*1.05 -> 0 | F52: =E52*1.05 -> 0 | G52: =F52*1.05 -> 0 | H52: Enter | I52: Enter | J52: Enter | K52: Enter | L52: Enter
B53: Actuarial Liability | H53: Enter | I53: Enter | J53: Enter | K53: Enter | L53: Enter
B54: Unfunded | H54: =+H53-H52 ->  | I54: =+I53-I52 ->  | J54: =+J53-J52 ->  | K54: =+K53-K52 ->  | L54: =+L53-L52 ->  | Q54: =ROUND(K54/$L$74,2) ->  | R54: =ROUND(L54/$L$74,2) -> 
B55: Percent funded | C55: =IF(ABS(C53)=0,"",+C52/C53) ->  | D55: =IF(ABS(D53)=0,"",+D52/D53) ->  | L55: =IF(ABS(L53)=0,"",+L52/L53) -> 
A56: Sum of all pension & OPEB plans
B57: Assets | C57: =+C46+C52 -> 0 | D57: 0 | E57: 0 | F57: 0 | G57: 0
B58: Actuarial Liability | C58: =+C47+C53 -> 0 | D58: 0 | E58: 0 | F58: 0 | G58: 0
B59: Unfunded | C59: =+C58-C57 -> 0 | D59: 0 | E59: 0 | F59: 0 | G59: 0 | Q59: =ROUND(K59/$L$74,2) ->  | R59: =ROUND(L59/$L$74,2) -> 
B60: Percent funded | C60: =IF(ABS(C58)=0,"",+C57/C58) ->  | D60: =IF(ABS(D58)=0,"",+D57/D58) ->  | L60: =IF(ABS(L58)=0,"",+L57/L58) -> 
A63: Debt:
A64: Bonds & contracts payable | H64: Enter | I64: Enter | J64: Enter | K64: Enter | L64: Enter
A65: Capital leases | H65: Enter | I65: Enter | J65: Enter | K65: Enter | L65: Enter
A66: Other contractual debt | H66: Enter | I66: Enter | J66: Enter | K66: Enter | L66: Enter
A67: Structured debt | C67: =SUM(C63:C66) -> 0 | D67: 0 | E67: 0 | F67: 0 | G67: 0 | H67: 0 | I67: 0 | J67: 0 | K67: 0 | L67: 0 | Q67: =ROUND(K67/$L$74,2) -> 0 | R67: =ROUND(L67/$L$74,2) -> 0
A68: Employee compensated absences | H68: Enter | I68: Enter | J68: Enter | K68: Enter | L68: Enter
A69: Landfill closure & postclosure care | H69: Enter | I69: Enter | J69: Enter | K69: Enter | L69: Enter
A70: Uninsured losses | H70: Enter | I70: Enter | J70: Enter | K70: Enter | L70: Enter
A71: Other claims & contingencies | H71: Enter | I71: Enter | J71: Enter | K71: Enter | L71: Enter
B72: Total long term debt (excl. pension & RHC) | C72: =SUM(C67:C71) -> 0 | D72: 0 | E72: 0 | F72: 0 | G72: 0 | H72: 0 | I72: 0 | J72: 0 | K72: 0 | L72: 0 | Q72: 0 | R72: 0
A74: Population information | H74: 1329 | I74: 1304 | J74: 1296 | K74: 1287 | L74: 1325 | M74: 1325 | N74: 1325 | O74: 1325 | P74: 1325
A76: Contact information:
A84: Graph data, pulled from above data:
A85: Revenue: | B85: 10 | C85: =+C3 -> 2001 | D85: 2002 | E85: 2003 | F85: 2004 | G85: 2005 | H85: 2006 | I85: 2007 | J85: 2008 | K85: 2009 | L85: 2010 | M85: =+M3 -> 2011 | N85: =+N3 -> 2012 | O85: =+O3 -> 2013 | P85: =+P3 -> 2014
B86: =INDEX(B8:B17,B85) -> total revenue | C86: =INDEX(C$8:C$17,$B$85) -> 0 | D86: 0 | E86: 0 | F86: 0 | G86: 0 | H86: 1027118 | I86: 832373 | J86: 918433 | K86: 869620 | L86: 796725 | M86: 1133672 | N86: 881242.73 | O86: 938132.45 | P86: 844434.92
A87: Expendtiures: | B87: 1
B88: =INDEX(B$19:B$32,$B$87) -> General government | C88: =INDEX(C$19:C$32,$B$87) -> 0 | D88: 0 | E88: 0 | F88: 0 | G88: 0 | H88: 80475 | I88: 82766 | J88: 98097 | K88: 103950 | L88: 102400 | M88: 96123 | N88: 105564 | O88: 97049.95 | P88: 97799.1

Sheet F-65 Cross-walk (hidden)
A1: F-65 line | B1: Description | C1: Aggregation | D1: =+'Data Input'!C3 -> 2001 | E1: =+'Data Input'!D3 -> 2002 | F1: =+'Data Input'!E3 -> 2003 | G1: =+'Data Input'!F3 -> 2004 | H1: =+'Data Input'!G3 -> 2005 | I1: =+'Data Input'!H3 -> 2006 | J1: =+'Data Input'!I3 -> 2007 | K1: =+'Data Input'!J3 -> 2008 | L1: =+'Data Input'!K3 -> 2009 | M1: =+'Data Input'!L3 -> 2010
B2: All Governmental Funds (col. A & b)
B3: REVENUE
A4: 101 | B4: Property taxes | C4: Taxes | I4: 275673 | J4: 288123 | K4: 300799 | L4: 307746 | M4: 300967
A5: 102 | B5: Tax reverted property | C5: Taxes | I5: 0 | J5: 0 | K5: 0 | L5: 0 | M5: 0
A6: 103 | B6: Commercial facilities tax | C6: Taxes | I6: 0 | J6: 0 | K6: 0 | L6: 0 | M6: 0
A7: 104 | B7: Trailer taxes | C7: Taxes | I7: 0 | J7: 0 | K7: 0 | L7: 0 | M7: 0
A8: 105 | B8: Hotel/ motel tax | C8: Taxes | I8: 0 | J8: 0 | K8: 0 | L8: 0 | M8: 0
A9: 106 | B9: Industrial facilities tax | C9: Taxes | I9: 0 | J9: 0 | K9: 0 | L9: 0 | M9: 0
A10: 107 | B10: Income tax | C10: Taxes | I10: 0 | J10: 0 | K10: 0 | L10: 0 | M10: 0
A11: 108 | B11: Business licenses & permits | C11: Licenses & permits | I11: 0 | J11: 0 | K11: 0 | L11: 0 | M11: 0
A12: 109 | B12: Non-business licenses & permits | C12: Licenses & permits | I12: 780 | J12: 1080 | K12: 303 | L12: 525 | M12: 340
A13: 110 | B13: Federal govt. grants - general government | C13: from Federal Govt. | I13: 0 | J13: 0 | K13: 0 | L13: 0 | M13: 0
A14: 111 | B14: Federal govt. grants - public safety | C14: from Federal Govt. | I14: 100200 | J14: 0 | K14: 0 | L14: 0 | M14: 0
A15: 112 | B15: Federal govt. grants - streets & highways | C15: from Federal Govt. | I15: 0 | J15: 0 | K15: 0 | L15: 0 | M15: 0
A16: 113 | B16: Federal govt. grants - sanitation | C16: from Federal Govt. | I16: 0 | J16: 0 | K16: 0 | L16: 0 | M16: 0
A17: 114 | B17: Federal govt. grants - health and/or hospitals | C17: from Federal Govt. | I17: 0 | J17: 0 | K17: 0 | L17: 0 | M17: 0
A18: 115 | B18: Federal govt. grants - welfare | C18: from Federal Govt. | I18: 0 | J18: 0 | K18: 0 | L18: 0 | M18: 0
A19: 116 | B19: Federal govt. grants - culture & recreation | C19: from Federal Govt. | I19: 0 | J19: 0 | K19: 0 | L19: 0 | M19: 0
A20: 117 | B20: Federal govt. grants - housing & community development | C20: from Federal Govt. | I20: 0 | J20: 0 | K20: 0 | L20: 0 | M20: 0
A21: 118 | B21: Federal govt. grants - water | C21: from Federal Govt. | I21: 0 | J21: 0 | K21: 0 | L21: 0 | M21: 0
A22: 119 | B22: Federal govt. grants - electric | C22: from Federal Govt. | I22: 0 | J22: 0 | K22: 0 | L22: 0 | M22: 0
A23: 120 | B23: Federal govt. grants - transit | C23: from Federal Govt. | I23: 0 | J23: 0 | K23: 0 | L23: 0 | M23: 0
A24: 121 | B24: Federal govt. grants - other | C24: from Federal Govt. | I24: 0 | J24: 0 | K24: 0 | L24: 0 | M24: 0
A25: 122 | B25: State revenue sharing | C25: from State Govt. | I25: 148307 | J25: 147099 | K25: 144930 | L25: 144835 | M25: 129890
A26: 123 | B26: State aid - general government | C26: from State Govt. | I26: 0 | J26: 0 | K26: 0 | L26: 0 | M26: 0
A27: 124 | B27: State payment in lieu of taxes | C27: from State Govt. | I27: 0 | J27: 0 | K27: 0 | L27: 0 | M27: 0
A28: 125 | B28: State swamp and land taxes | C28: from State Govt. | I28: 0 | J28: 0 | K28: 0 | L28: 0 | M28: 0
A29: 126 | B29: State aid - public safety | C29: from State Govt. | I29: 0 | J29: 0 | K29: 0 | L29: 0 | M29: 0
A30: 127 | B30: State pass-thru of act 51(Streets) | C30: from State Govt. | I30: 94497 | J30: 90704 | K30: 93249 | L30: 89877 | M30: 96074
A31: 128 | B31: State aid - streets & bridges | C31: from State Govt. | I31: 0 | J31: 3124 | K31: 0 | L31: 0 | M31: 0
A32: 129 | B32: State aid - sanitation | C32: from State Govt. | I32: 0 | J32: 0 | K32: 0 | L32: 0 | M32: 0
A33: 130 | B33: State aid - health and/or hospitals | C33: from State Govt. | I33: 0 | J33: 0 | K33: 0 | L33: 0 | M33: 0
A34: 131 | B34: State aid - welfare | C34: from State Govt. | I34: 0 | J34: 0 | K34: 0 | L34: 0 | M34: 0
A35: 132 | B35: State aid - culture & recreation | C35: from State Govt. | I35: 0 | J35: 0 | K35: 0 | L35: 0 | M35: 0
A36: 133 | B36: State aid - housing & community development | C36: from State Govt. | I36: 0 | J36: 0 | K36: 0 | L36: 0 | M36: 0
A37: 134 | B37: State aid - water | C37: from State Govt. | I37: 0 | J37: 0 | K37: 0 | L37: 0 | M37: 0
A38: 135 | B38: State aid - electric | C38: from State Govt. | I38: 0 | J38: 0 | K38: 0 | L38: 0 | M38: 0
A39: 136 | B39: State aid - transit | C39: from State Govt. | I39: 0 | J39: 0 | K39: 0 | L39: 0 | M39: 0
A40: 137 | B40: State aid - other | C40: from State Govt. | I40: 1442 | J40: 60866 | K40: 1420 | L40: 0 | M40: 0
A41: 138 | B41: Local donations - general government | C41: Local contributions | I41: 0 | J41: 0 | K41: 0 | L41: 0 | M41: 0
A42: 139 | B42: Local donations - public safety | C42: Local contributions | I42: 95250 | J42: 76335 | K42: 73743 | L42: 0 | M42: 77012
A43: 140 | B43: Local donations - streets & highways | C43: Local contributions | I43: 0 | J43: 0 | K43: 0 | L43: 0 | M43: 0
A44: 141 | B44: Local donations - sanitation | C44: Local contributions | I44: 0 | J44: 0 | K44: 0 | L44: 0 | M44: 0
A45: 142 | B45: Local donations - health and/or hospitals | C45: Local contributions | I45: 0 | J45: 0 | K45: 0 | L45: 0 | M45: 0
A46: 143 | B46: Local donations - welfare | C46: Local contributions | I46: 0 | J46: 0 | K46: 0 | L46: 0 | M46: 0
A47: 144 | B47: Local donations - culture & recreation | C47: Local contributions | I47: 0 | J47: 0 | K47: 0 | L47: 0 | M47: 0
A48: 145 | B48: Local donations - housing & community development | C48: Local contributions | I48: 0 | J48: 0 | K48: 0 | L48: 0 | M48: 0
A49: 146 | B49: Local donations - Gas, water, electric | C49: Local contributions | I49: 0 | J49: 0 | K49: 0 | L49: 0 | M49: 0
A50: 147 | B50: Local donations - transit | C50: Local contributions | I50: 0 | J50: 0 | K50: 0 | L50: 0 | M50: 0
A51: 148 | B51: Local donations - other | C51: Local contributions | I51: 0 | J51: 0 | K51: 0 | L51: 0 | M51: 0
A52: 149 | B52: Court-ordered fees and charges | C52: Fines & forfeitures | I52: 0 | J52: 0 | K52: 0 | L52: 0 | M52: 0
A53: 150 | B53: Statutory court fees & charges | C53: Fines & forfeitures | I53: 0 | J53: 0 | K53: 0 | L53: 0 | M53: 0
A54: 151 | B54: Clerk's office charges | C54: Charges for services | I54: 0 | J54: 0 | K54: 0 | L54: 0 | M54: 0
A55: 152 | B55: Election charges | C55: Charges for services | I55: 0 | J55: 0 | K55: 0 | L55: 0 | M55: 0
A56: 153 | B56: Register of Deeds fees | C56: Charges for services | I56: 0 | J56: 0 | K56: 0 | L56: 0 | M56: 0
A57: 154 | B57: All other statutory fees | C57: Charges for services | I57: 0 | J57: 0 | K57: 0 | L57: 0 | M57: 0
A58: 155 | B58: Fire run charges | C58: Charges for services | I58: 0 | J58: 0 | K58: 0 | L58: 0 | M58: 0
A59: 156 | B59: Police fees | C59: Charges for services | I59: 0 | J59: 0 | K59: 0 | L59: 0 | M59: 0
A60: 157 | B60: Other charges for services | C60: Charges for services | I60: 38093 | J60: 40017 | K60: 41607 | L60: 46581 | M60: 44038
A61: 158 | B61: Parks and recreation fees | C61: Charges for services | I61: 0 | J61: 600 | K61: 0 | L61: 0 | M61: 0
A62: 159 | B62: Parking fees | C62: Charges for services | I62: 0 | J62: 0 | K62: 0 | L62: 0 | M62: 0
A63: 160 | B63: All other fees | C63: Charges for services | I63: 0 | J63: 0 | K63: 0 | L63: 0 | M63: 0
A64: 161 | B64: Fines, penalties & forfeits | C64: Fines & forfeitures | I64: 1336 | J64: 1184 | K64: 1158 | L64: 2555 | M64: 298
A65: 162 | B65: Interest & dividends | C65: Interest & rent | I65: 16406 | J65: 24732 | K65: 35149 | L65: 15704 | M65: 13276
A66: 163 | B66: Rents & royalties | C66: Interest & rent | I66: 23097 | J66: 42130 | K66: 61248 | L66: 61297 | M66: 52345
A67: 164 | B67: Misc. other revenue | C67: Other revenue | I67: 13253 | J67: 17591 | K67: 13827 | L67: 6700 | M67: 8756
A68: 165 | B68: Special assessments | C68: Other revenue | I68: 0 | J68: 0 | K68: 0 | L68: 0 | M68: 0
A69: 166 | B69: Sale of fixed assets | C69: Other revenue | I69: 0 | J69: 0 | K69: 0 | L69: 0 | M69: 0
A70: 167 | B70: Contributions | C70: Other revenue | I70: 0 | J70: 0 | K70: 0 | L70: 0 | M70: 0
A71: 168 | B71: Ambulance services | C71: Charges for services | I71: 0 | J71: 0 | K71: 0 | L71: 0 | M71: 0
A72: 169 | B72: Other refunds & rebates | C72: Other revenue | I72: 825 | J72: 788 | K72: 0 | L72: 971 | M72: 829
A73: 170 | B73: Debt issuance | C73: Other revenue | I73: 0 | J73: 0 | K73: 0 | L73: 0 | M73: 0
A74: 171 | B74: Extraordinary/ Special items | C74: Other revenue | I74: 0 | J74: 0 | K74: 0 | L74: 0 | M74: 0
A75: 172 | B75: Interfund transfers In | C75: Other revenue | I75: 217959 | J75: 38000 | K75: 151000 | L75: 106100 | M75: 72900
A76: 173 | B76: Total revenue | I76: =SUM(I4:I75) -> 1027118 | J76: =SUM(J4:J75) -> 832373 | K76: =SUM(K4:K75) -> 918433 | L76: =SUM(L4:L75) -> 782891 | M76: =SUM(M4:M75) -> 796725
B77: EXPENDITURES
A78: 201 | B78: Legislative | C78: General government | I78: 11048 | J78: 8429 | K78: 8440 | L78: 8279 | M78: 8238
A79: 203 | B79: Chief executive | C79: General government | I79: 0 | J79: 0 | K79: 0 | L79: 0 | M79: 0
A80: 204 | B80: Treasurer | C80: General government | I80: 0 | J80: 0 | K80: 0 | L80: 0 | M80: 0
A81: 205 | B81: Assessing | C81: General government | I81: 0 | J81: 27441 | K81: 0 | L81: 0 | M81: 0
A82: 206 | B82: Clerk | C82: General government | I82: 0 | J82: 0 | K82: 0 | L82: 0 | M82: 0
A83: 207 | B83: Elections | C83: General government | I83: 28589 | J83: 750 | K83: 30240 | L83: 35202 | M83: 32569
A84: 208 | B84: Finance | C84: General government | I84: 957 | J84: 0 | K84: 2286 | L84: 0 | M84: 1026
A85: 209 | B85: Building & grounds | C85: General government | I85: 0 | J85: 0 | K85: 0 | L85: 0 | M85: 0
A86: 210 | B86: All other gen gov. | C86: General government | I86: 37034 | J86: 40034 | K86: 52649 | L86: 58194 | M86: 56945
A87: 202 | B87: Judicial | C87: General government | I87: 2847 | J87: 6112 | K87: 4482 | L87: 7003 | M87: 3622
A88: 211 | B88: Police | C88: Police & fire | I88: 47981 | J88: 55309 | K88: 55930 | L88: 58136 | M88: 60369
A89: 212 | B89: Fire | C89: Police & fire | I89: 84807 | J89: 103067 | K89: 92279 | L89: 28014 | M89: 93258
A90: 213 | B90: Combined public safety | C90: Police & fire | I90: 0 | J90: 0 | K90: 0 | L90: 0 | M90: 0
A91: 214 | B91: Dispatch (if separate) | C91: Police & fire | I91: 0 | J91: 0 | K91: 0 | L91: 0 | M91: 0
A92: 215 | B92: Jail | C92: Police & fire | I92: 0 | J92: 0 | K92: 0 | L92: 0 | M92: 0
A93: 216 | B93: Building regulations | C93: Other public safety | I93: 0 | J93: 3499 | K93: 0 | L93: 0 | M93: 0
A94: 217 | B94: Other public safety | C94: Other public safety | I94: 10321 | J94: 5980 | K94: 9309 | L94: 0 | M94: 5965
A95: 218 | B95: DPW | C95: Other public works | I95: 62684 | J95: 0 | K95: 71696 | L95: 76787 | M95: 78245
A96: 219 | B96: Roads & bridges | C96: Roads | I96: 465000 | J96: 179737 | K96: 301295 | L96: 254485 | M96: 217588
A97: 220 | B97: Trash disposal & landfilling | C97: Other public works | I97: 0 | J97: 0 | K97: 0 | L97: 0 | M97: 0
A98: 221 | B98: Water or sewer | C98: Other public works | I98: 0 | J98: 0 | K98: 0 | L98: 0 | M98: 0
A99: 222 | B99: Electricity | C99: Other public works | I99: 0 | J99: 19774 | K99: 0 | L99: 0 | M99: 0
A100: 223 | B100: Airports | C100: Other public works | I100: 0 | J100: 0 | K100: 0 | L100: 0 | M100: 0
A101: 224 | B101: Public transportation | C101: Other public works | I101: 0 | J101: 0 | K101: 0 | L101: 0 | M101: 0
A102: 225 | B102: Water or sewer | C102: Other public works | I102: 0 | J102: 0 | K102: 0 | L102: 0 | M102: 0
A103: 226 | B103: Other public works | C103: Other public works | I103: 0 | J103: 50668 | K103: 0 | L103: 0 | M103: 0
A104: 227 | B104: Health dept. | C104: Health & welfare | I104: 0 | J104: 0 | K104: 0 | L104: 0 | M104: 0
A105: 228 | B105: Alcoholism & substance abuse | C105: Health & welfare | I105: 0 | J105: 0 | K105: 0 | L105: 0 | M105: 0
A106: 229 | B106: Hospital | C106: Health & welfare | I106: 0 | J106: 0 | K106: 0 | L106: 0 | M106: 0
A107: 230 | B107: Medical examiner | C107: Health & welfare | I107: 0 | J107: 0 | K107: 0 | L107: 0 | M107: 0
A108: 231 | B108: Mental health | C108: Health & welfare | I108: 0 | J108: 0 | K108: 0 | L108: 0 | M108: 0
A109: 232 | B109: Ambulance | C109: Health & welfare | I109: 0 | J109: 0 | K109: 0 | L109: 5980 | M109: 6142
A110: 233 | B110: Child care | C110: Health & welfare | I110: 0 | J110: 0 | K110: 0 | L110: 0 | M110: 0
A111: 234 | B111: Human services | C111: Health & welfare | I111: 0 | J111: 0 | K111: 0 | L111: 0 | M111: 0
A112: 235 | B112: Area agency on aging | C112: Health & welfare | I112: 0 | J112: 0 | K112: 0 | L112: 0 | M112: 0
A113: 236 | B113: Veterans' programs | C113: Health & welfare | I113: 0 | J113: 0 | K113: 0 | L113: 0 | M113: 0
A114: 237 | B114: Other health & welfare | C114: Health & welfare | I114: 0 | J114: 0 | K114: 0 | L114: 0 | M114: 0
A115: 238 | B115: Public housing | C115: Community & economic development | I115: 0 | J115: 0 | K115: 0 | L115: 0 | M115: 0
A116: 239 | B116: Planning & zoning | C116: Community & economic development | I116: 0 | J116: 0 | K116: 0 | L116: 0 | M116: 0
A117: 240 | B117: Economic development | C117: Community & economic development | I117: 0 | J117: 0 | K117: 0 | L117: 0 | M117: 0
A118: 241 | B118: Oher community development | C118: Community & economic development | I118: 0 | J118: 0 | K118: 0 | L118: 0 | M118: 0
A119: 242 | B119: Parks & recreation | C119: Recreation & culture | I119: 44923 | J119: 27356 | K119: 38435 | L119: 34075 | M119: 39548
A120: 243 | B120: Library | C120: Recreation & culture | I120: 0 | J120: 0 | K120: 0 | L120: 0 | M120: 0
A121: 244 | B121: Other cultural activities | C121: Recreation & culture | I121: 0 | J121: 0 | K121: 0 | L121: 0 | M121: 0
A122: 245 | B122: Fringe benefits not directly allocated to departments | C122: Unallocated fringes & insurance | I122: 0 | J122: 0 | K122: 0 | L122: 0 | M122: 0
A123: 246 | B123: Capital outlay | C123: Capital outlay | I123: 122303 | J123: 114213 | K123: 20338 | L123: 63055 | M123: 176045
A124: 247 | B124: Debt service | C124: Debt service | I124: 0 | J124: 0 | K124: 0 | L124: 0 | M124: 0
A125: 248 | B125: Interfund transfers out | C125: Interfund transfers (net) | I125: 217959 | J125: 38000 | K125: 151000 | L125: 106100 | M125: 72900
A126: 249 | B126: Extraordinary/ Special items | C126: Extraordinary/ Special items | I126: 0 | J126: 0 | K126: 0 | L126: 0 | M126: 0
A127: 250 | B127: Total expenditures | I127: =SUM(I78:I126) -> 1136453 | J127: =SUM(J78:J126) -> 680369 | K127: =SUM(K78:K126) -> 838379 | L127: =SUM(L78:L126) -> 735310 | M127: =SUM(M78:M126) -> 852460
B129: FUND BALANCE
A130: 531 | B130: - Reserved/ Restricted | C130: Reserved | I130: 0 | J130: 0 | K130: 0 | L130: 0 | M130: 0
A131: 532 | B131: - Designated | C131: Designated | I131: 15797 | J131: 0 | K131: 16838 | L131: 17448 | M131: 17880
A132: 533 | B132: - Undesignated/ unreserved/ unrestricted | C132: Undesignated fund balance | I132: 684655 | J132: 883222 | K132: 947228 | L132: 989825 | M132: 950967
A133: 534 | B133: Total equity
B135: Population information

Sheet Rev
A1: VILLAGE OF SARANAC
A2: CITIZENS' GUIDE TO LOCAL UNIT FINANCES - REVENUES
A4: 1. Where our money comes from (all governmental funds) | G4: 2. Compared to the prior year
H5: 2013 | I5: 2014 | J5: % change
G6: Taxes | H6: =+'Data Input'!O8 -> 269363.96 | I6: =+'Data Input'!P8 -> 257183.16 | J6: =IF(H6=0,"n/a",(I6-H6)/H6) -> -0.04522060041
G7: Licenses & permits | H7: =+'Data Input'!O9 -> 575 | I7: =+'Data Input'!P9 -> 350 | J7: =IF(H7=0,"n/a",(I7-H7)/H7) -> -0.3913043478
G8: from Federal Govt. | H8: =+'Data Input'!O10 -> 0 | I8: =+'Data Input'!P10 -> 0 | J8: n/a
G9: from State Govt. | H9: =+'Data Input'!O11 -> 223856.4 | I9: =+'Data Input'!P11 -> 235192.15 | J9: 0.05063848967
G10: Local contributions | H10: =+'Data Input'!O12 -> 98791.52 | I10: =+'Data Input'!P12 -> 103057.02 | J10: 0.04317678278
G11: Charges for services | H11: =+'Data Input'!O13 -> 49299.19 | I11: =+'Data Input'!P13 -> 50881.83 | J11: 0.03210275869
G12: Fines & forfeitures | H12: =+'Data Input'!O14 -> 1336.14 | I12: =+'Data Input'!P14 -> 1102.79 | J12: -0.1746448725
G13: Interest & rent | H13: =+'Data Input'!O15 -> 37404.03 | I13: =+'Data Input'!P15 -> 42248.1 | J13: 0.1295066334
G14: Other revenue | H14: =+'Data Input'!O16 -> 257506.21 | I14: =+'Data Input'!P16 -> 154419.87 | J14: -0.4003256465
G15: Total | H15: =+'Data Input'!O17 -> 938132.45 | I15: =+'Data Input'!P17 -> 844434.92 | J15: =IF(H15=0,"n/a",(I15-H15)/H15) -> -0.09987665388
A20: 3. Revenue sources per capita - compared to the prior year | G20: 4. Historical trends of individual sources
A40: =+'Data Input'!A77 -> 0

Sheet Exp
A1: VILLAGE OF SARANAC
A2: CITIZENS' GUIDE TO LOCAL UNIT FINANCES - EXPENDITURES
A4: 1. Where we spend our money (all governmental funds) | G4: 2. Compared to the prior year
H5: =+'Data Input'!O3 -> 2013 | I5: =+'Data Input'!P3 -> 2014 | J5: % change
G6: General government | H6: =+'Data Input'!O19 -> 97049.95 | I6: =+'Data Input'!P19 -> 97799.1 | J6: =IF(H6=0,"n/a",(I6-H6)/H6) -> 0.007719220875
G7: Police & fire | H7: =+'Data Input'!O20 -> 195694.64 | I7: =+'Data Input'!P20 -> 192472.63 | J7: -0.01646447751
G8: Other public safety | H8: =+'Data Input'!O21 -> 5616.55 | I8: =+'Data Input'!P21 -> 5606.9 | J8: -0.001718136579
G9: Roads | H9: =+'Data Input'!O22 -> 385065.6 | I9: =+'Data Input'!P22 -> 297145.16 | J9: -0.2283258749
G10: Other public works | H10: =+'Data Input'!O23 -> 73587.35 | I10: =+'Data Input'!P23 -> 74415.29 | J10: 0.01125111857
G11: Health & welfare | H11: =+'Data Input'!O24 -> 6141.76 | I11: =+'Data Input'!P24 -> 6100.26 | J11: -0.006757020789
G12: Community & economic development | H12: =+'Data Input'!O25 -> 0 | I12: =+'Data Input'!P25 -> 0 | J12: n/a
G13: Recreation & culture | H13: =+'Data Input'!O26 -> 48423.56 | I13: =+'Data Input'!P26 -> 42565.02 | J13: -0.120985322
G14: Capital outlay | H14: =+'Data Input'!O27 -> 10321.96 | I14: =+'Data Input'!P27 -> 29425 | J14: 1.850718274
G15: Debt service | H15: =+'Data Input'!O28 -> 0 | I15: =+'Data Input'!P28 -> 0 | J15: n/a
G16: Unallocated fringes & insurance | H16: =+'Data Input'!O29 -> 0 | I16: =+'Data Input'!P29 -> 0 | J16: =IF(H16=0,"n/a",(I16-H16)/H16) -> n/a
G17: Net Interfund transfers | H17: =+'Data Input'!O30 -> 244500 | I17: =+'Data Input'!P30 -> 140000 | J17: =IF(H17=0,"n/a",(I17-H17)/H17) -> -0.427402863
G18: Extraordinary/ Special items | H18: =+'Data Input'!O31 -> 0 | I18: =+'Data Input'!P31 -> 0 | J18: =IF(H18=0,"n/a",(I18-H18)/H18) -> n/a
G19: total expenditures | H19: =+'Data Input'!O32 -> 1066401.37 | I19: =+'Data Input'!P32 -> 885529.36 | J19: =(I19-H19)/H19 -> -0.169609694
A20: 3. Spending per capita - compared to the prior year | G20: 4. Historical trends of individual departments:
A43: =+'Data Input'!A77 -> 0

Sheet Position
A1: VILLAGE OF SARANAC
A2: CITIZENS' GUIDE TO LOCAL UNIT FINANCES - FINANCIAL POSITION
A4: 1. How have we managed our governmental fund resources (fund balance)? | G4: 2. Compared to the prior year
H5: =+'Data Input'!O3 -> 2013 | I5: =+'Data Input'!P3 -> 2014 | J5: % change
G6: Revenue | H6: =+'Data Input'!O17 -> 938132.45 | I6: =+'Data Input'!P17 -> 844434.92 | J6: =(I6-H6)/H6 -> -0.09987665388
G7: Expenditures | H7: =+'Data Input'!O32 -> 1066401.37 | I7: =+'Data Input'!P32 -> 885529.36 | J7: =(I7-H7)/H7 -> -0.169609694
G8: Surplus (shortfall) | H8: =+'Data Input'!O33 -> -128268.92 | I8: =+'Data Input'!P33 -> -41094.44 | J8: =(I8-H8)/H8 -> -0.67962278
G9: Fund balance, by component:
G10: Reserved | H10: =+'Data Input'!K38 -> 0 | I10: =+'Data Input'!L38 -> 0 | J10: =(I10-H10)/H10 -> 
G11: Designated | H11: =+'Data Input'!O37 -> 18072.49 | I11: =+'Data Input'!P37 -> 18099.62 | J11: =(I11-H11)/H11 -> 0.00150117665
G12: Undesignated | H12: =+'Data Input'!O36 -> 471191 | I12: =+'Data Input'!P36 -> 430069 | J12: =(I12-H12)/H12 -> -0.08727246488
G13: total fund balance | H13: =SUM(H10:H12) -> 489263.49 | I13: =SUM(I10:I12) -> 448168.62 | J13: =(I13-H13)/H13 -> -0.08399333046
A20: 3. Fund balance per capita - compared to the prior year | G20: 4. Historical trends of individual components
A40: =+'Data Input'!A77 -> 0

Sheet Obligations
A1: =+'Data Input'!A2 -> CITIZENS' GUIDE TO LOCAL UNIT FINANCES | P1: OTHER LONG TERM OBLIGATIONS
A2: 1. Pension funding status | F2: 2. Retiree Health care funding status | K2: 3. Percent funded - compared to the prior year
A18: 4. Long Term Debt obligations: | J18: 5. Debt & other long term obligations per capita - compared to the prior year
A38: =+'Data Input'!A77 -> 0

Sheet Budget Projection
A1: VILLAGE OF SARANAC
A2: CITIZENS' GUIDE TO LOCAL UNIT FINANCES - BUDGET PROJECTION
C4: FYE 2015 | D4: FYE 2016
C5: Current FY | D5: Subsequent FY
A6: Revenues
B7: Taxes | C7: =203000+4500+24000+24000 -> 255500 | D7: 255000 | F7: 0
B8: Licenses & permits | C8: 250 | D8: 250
B9: from Federal Govt. | C9: 0 | D9: 0
B10: from State Govt. | C10: =1500+127000+4500+68500+21250 -> 222750 | D10: 223000
B11: Local contributions | C11: 119000 | D11: 123000
B12: Charges for services | C12: 50750 | D12: 51000
B13: Fines & forfeitures | C13: 500 | D13: 500
B14: Interest & rent | C14: =750+1000+1750+40000 -> 43500 | D14: 44000
B15: Other revenue | C15: =500+8000+118000+50500 -> 177000 | D15: =8000+500+79250 -> 87750
B16: total revenue | C16: =SUM(C7:C15) -> 869250 | D16: =SUM(D7:D15) -> 784500
A17: Expenditures
B18: General government | C18: =10500+500+38700+72000-13000+5000+867+500+500+1000 -> 116567 | D18: 119000
B19: Police & fire | C19: =69000+30000+119000 -> 218000 | D19: =70000+123000+32000 -> 225000
B20: Other public safety | C20: =1500+500+4800+750 -> 7550 | D20: 7500
B21: Roads | C21: =210500+95750 -> 306250 | D21: 217000
B22: Other public works | C22: =50000+27000 -> 77000 | D22: =51000+28000 -> 79000
B23: Health & welfare | C23: 6045 | D23: 6500
B24: Recreation & culture | C24: =84500-37200 -> 47300 | D24: 49000
B25: Capital outlay | C25: =13000+37200 -> 50200 | D25: 0
B26: Net Interfund transfers | C26: 168500 | D26: 79250
B27: total expenditures | C27: =SUM(C18:C26) -> 997412 | D27: =SUM(D18:D26) -> 782250
B28: Surplus (shortfall) | C28: =+C16-C27 -> -128162 | D28: =+D16-D27 -> 2250
A29: Financial position - General Fund
B30: Beginning fund balance | C30: 448169 | D30: =+C31 -> 320007
B31: Ending fund balance | C31: =C28+C30 -> 320007 | D31: =D28+D30 -> 322257
A34: Budget Assumptions:
B35: FYE 2016 Budget Projection was created with the assumption that
B36: Revenues and Expenditures (other than "Capital Outlay") shall remain
B37: fairly equal to those of FYE 2015. The lack of "Capital Outlay", directly
B38: impacts the "Other Revenue" and "Net Interfund Transfers".

Sheet Sheet1

Sheet Sheet2
